Cogmind - Beta 16.1 @@@ ROGUE MODE // 2026.02.17 @ 19:22:46 Player: winnking222 Result: Destroyed by M2-KYX(R) with Subdweller Beam Cannon Performance ------------- Evolutions (0) 0 Regions Visited (2) 400 Robots Destroyed (40) 200 Value Destroyed (1072) 1072 Prototype IDs (0) 0 Alien Tech Used (0) 0 Bonus (0) 0 TOTAL SCORE: 1672 Bonus ------- None Cogmind --------- Core Integrity 0/250 Matter 280/300 Energy 173/200 System Corruption 0% Temperature Cool (10) Movement Rolling (210) Ox8 Location -10/Subcaves Parts ------- > --- POWER (1) -------- Subdweller Power Source > --- PROPULSION (2) --- Light Treads Armored Wheel > --- UTILITY (2) ------ Huge Storage Unit Medium Armor Plating > --- WEAPON (2) ------- Spread Laser Spread Laser > --- INVENTORY (25) --- Subdweller Power Source Subdweller Power Source Light Treads Light Treads Compact Wheel Armored Wheel Armored Wheel Armored Wheel Subdweller Monowheel Subdweller Monowheel Subdweller Monowheel Large Storage Unit Subdweller Optics Subdweller Optics Riot Gun Spread Laser Spread Laser Subdweller Laser Subdweller Beam Cannon Shotgun Shotgun Light Cannon Battle Cannon Grenade Launcher Shrapnel Trap Peak State ------------ > --- POWER ------------ Subdweller Power Source > --- PROPULSION ------- Light Treads Armored Wheel > --- UTILITY ---------- Huge Storage Unit Medium Armor Plating > --- WEAPON ----------- Spread Laser Spread Laser > --- INVENTORY -------- Subdweller Power Source Subdweller Power Source Light Treads Light Treads Compact Wheel Armored Wheel Armored Wheel Armored Wheel Subdweller Monowheel Subdweller Monowheel Subdweller Monowheel Large Storage Unit Subdweller Optics Subdweller Optics Spread Laser Spread Laser Subdweller Laser Subdweller Beam Cannon Shotgun Shotgun Light Cannon Battle Cannon Grenade Launcher Shrapnel Trap [Rating: 16] Favorites ----------- Power Subdweller Power Source Engine Subdweller Power Source Propulsion Light Treads Treads Light Treads Wheel Armored Wheel Utility Medium Armor Plating Device Seismic Detector Storage Huge Storage Unit Protection Medium Armor Plating Weapon Spread Laser Energy Gun Spread Laser Ballistic Gun Shotgun Build | -11 -10 -10 ------- Run | Yrd Mat Sub Slots Evolved . | . . . Power . | . . . Propulsion . | . . . Utility . | . . . Weapon . | . . . Parts Attached 26 | 7 10 9 Power 3 | 1 1 1 Engine 3 | 1 1 1 Core . | . . . Reactor . | . . . Propulsion 6 | 2 2 2 Treads 5 | 2 1 2 Leg . | . . . Wheel 1 | . 1 . Hover . | . . . Flight . | . . . Utility 8 | 2 4 2 Device 1 | 1 . . Storage 3 | 1 2 . Processor . | . . . Hackware . | . . . Protection 4 | . 2 2 Artifact . | . . . Weapon 9 | 2 3 4 Energy Gun 4 | 1 . 3 Energy Cannon . | . . . Ballistic Gun 5 | 1 3 1 Ballistic Cannon . | . . . Launcher . | . . . Special Weapon . | . . . Impact Weapon . | . . . Slashing Weapon . | . . . Piercing Weapon . | . . . Special Melee Weapon . | . . . Unidentified Prototypes . | . . . Parts Lost 9 | . 2 7 Power 1 | . . 1 Propulsion 3 | . 1 2 Utility 3 | . 1 2 Weapon 2 | . . 2 Highest Loss Streak 5 | . 1 5 To Critical Strikes . | . . . Average Backups 16 | 5 13 20 Power 1 | 1 . 1 Propulsion 6 | 3 5 8 Utility 2 | . 2 2 Weapon 6 | 1 5 8 Tool/Special . | . . . Unused Backups 25 | . 4 21 Power 2 | . . 2 Propulsion 12 | . 3 9 Utility 2 | . . 2 Weapon 9 | . 1 8 Tool/Special . | . . . Average Slot Usage (%) 98 | . 96 99 Engine 13 | . 14 13 Treads 17 | . 21 13 Wheel 10 | . 6 14 Device 1 | . 2 . Storage 14 | . 14 14 Protection 11 | . 8 13 Energy Gun 15 | . 7 21 Ballistic Gun 12 | . 20 6 Peak Build Rating 16 | 7 14 16 Average Rating 12 | 5 10 14 On Entrance 7 | . 7 14 Avg Prop Armor Cover (%) 8 | . 8 8 Naked Turns . | . . . Heaviest Build 98 | 12 98 98 Greatest Support 40 | 40 40 12 Greatest Overweight (x) 8 | 1 8 8 Average Overweight (x) 5 | . 3 8 Largest Inventory Capacity 25 | 8 25 25 Average Capacity 21 | 7 17 25 Most Carried 25 | 7 20 25 Average Carried 17 | 5 13 20 Final Capacity 25 | 8 25 25 Final Carried 25 | 6 19 25 Class Distribution -------------------- 100% | Mutant Dominant Class ---------------- Mutant | -10/Materials Mutant | -10/Subcaves Resources | -11 -10 -10 ----------- Run | Yrd Mat Sub Matter Collected 832 | 294 281 257 Remotely . | . . . Salvage Created 1181 | 197 662 322 Parts 69 | 11 37 21 Haulers Intercepted 1 | . 1 . Recyclers Shooed 2 | 1 1 . Parts Field Recycled . | . . . Retrieved Matter . | . . . Parts Self-Destructed 6 | . . 6 Prevented . | . . . Parts Restored . | . . . Kills | -11 -10 -10 ------- Run | Yrd Mat Sub Combat Hostiles Destroyed 28 | . 16 12 Guns 28 | . 16 12 Classes Destroyed 8 | 3 4 1 Worker 2 | 2 . . Tunneler 5 | 5 . . Hauler 1 | . 1 . Recycler 1 | 1 . . Watcher 3 | . 3 . Swarmer 3 | . 3 . Grunt 15 | . 13 2 Subdweller 10 | . . 10 Best Kill Streak 7 | 7 5 4 Combat Bots Only 5 | . 5 4 Max Kills in Single Turn 1 | 1 1 1 Gunslinging . | . . . Exploded . | . . . Melee . | . . . Uniques/NPCs Destroyed . | . . . Combat | -11 -10 -10 -------- Run | Yrd Mat Sub Hostile Shots Fired 168 | . 80 88 Missed 41 | . 16 25 Hits 127 | . 64 63 Projectile 127 | . 64 63 Critical Strikes 1 | . 1 . Damage Taken 2005 | . 707 1298 Core 254 | . 100 154 Absorbed by Shields . | . . . Core Remaining (%) 100 | 100 . . Volleys Fired 157 | 24 75 58 Largest 2 | 2 2 2 Hottest 130 | 70 70 130 Shots Fired 309 | 48 148 113 Gun 309 | 48 148 113 Cannon . | . . . Launcher . | . . . Special . | . . . Kinetic 168 | 24 93 51 Thermal 141 | 24 55 62 Explosive . | . . . Electromagnetic . | . . . Robot Hit Streak 16 | 10 7 16 Robot Miss Streak 8 | 3 8 3 Penetration Max . | . . . Secondary Targets 8 | . 4 4 Max Gunslinging Chain 1 | . 1 1 Shots Hit Robots 205 | 30 92 83 Core Hits 116 | 13 41 62 Critical Kills . | . . . Critical Parts Destroyed 1 | . 1 . Critical Strikes 6 | 2 3 1 Burn 4 | 2 2 . Destroy 2 | . 1 1 Melee Attacks . | . . . Impact . | . . . Slashing . | . . . Piercing . | . . . Sneak Attacks . | . . . Combat Hostiles . | . . . Follow-up Attacks . | . . . Damage Inflicted 2733 | 317 1027 1389 Guns 2729 | 317 1023 1389 Cannons . | . . . Explosions . | . . . Melee . | . . . Ramming 4 | . 4 . Kinetic 1473 | 108 599 766 Thermal 1256 | 209 424 623 Explosive . | . . . Electromagnetic . | . . . Impact . | . . . Slashing . | . . . Piercing . | . . . Highest Corruption . | . . . Average Corruption . | . . . Corruption Purged . | . . . Corruption Blocked . | . . . Overload Shots . | . . . Overflow Damage . | . . . Projectiles . | . . . Explosions . | . . . Melee . | . . . Knockbacks . | . . . Impact . | . . . Kinetic . | . . . Secondary . | . . . Self-Inflicted Damage . | . . . Shots . | . . . Rammed 1 | . 1 . Targets Rammed 1 | . 1 . Kicked . | . . . Crushed . | . . . Highest Temperature 226 | 170 226 84 Average Temperature 57 | 62 69 17 Received Heat Transfer 606 | . 327 279 Effects 2 | . 2 . Interference 2 | . 2 . Siege Activations . | . . . Martial Activations . | . . . Shielding Activations . | . . . Robots Disrupted . | . . . Combat Hostiles . | . . . Robots Corrupted . | . . . Combat Hostiles . | . . . Parts Fried . | . . . Impact Corruptions . | . . . Robots Melted . | . . . Combat Hostiles . | . . . Parts Melted 4 | . 4 . Heat Transferred 2943 | 777 1406 760 Parts Sabotaged . | . . . Parts Stolen . | . . . Parts Stripped . | . . . Power Chain Reactions . | . . . Alert | -11 -10 -10 ------- Run | Yrd Mat Sub Maximum Alert Level . | . . . Low Security (%) 100 | 100 100 . Level 1 . | . . . Level 2 . | . . . Level 3 . | . . . Level 4 . | . . . Level 5 . | . . . High Security . | . . . Max Security . | . . . Peak Influence 96 | 10 96 . Initial . | . . . Average 29 | 1 32 . Influence Increases 529 | 40 439 50 Destroy 0b10 Robot/C 360 | . 320 40 Destroy 0b10 Robot/NC 60 | 40 20 . Destroy Leader 88 | . 78 10 Successful Hack 21 | . 21 . Influence Decreases 529 | 40 439 50 Time Decay 519 | 40 429 50 Lost Part 10 | . 10 . Squads Dispatched 4 | . 4 . Investigation 4 | . 4 . Extermination . | . . . Reinforcement . | . . . Assault . | . . . Garrison . | . . . Intercept . | . . . Searches Triggered . | . . . Construction Impeded . | . . . Haulers Reinforced . | . . . Active Scanning Responses . | . . . Cargo Convoy Interrupts . | . . . Stealth | -11 -10 -10 --------- Run | Yrd Mat Sub Distress Signals 1 | . 1 . Communications Jammed . | . . . Distress Signals . | . . . Times Spotted 39 | . 26 13 Peak Tracking Total 4 | . 4 3 Tactical Retreats . | . . . Traps | -11 -10 -10 ------- Run | Yrd Mat Sub Traps Triggered 3 | . 3 . Indirectly . | . . . Trap Hack Attempts . | . . . Triggered . | . . . Disarmed . | . . . Reprogrammed . | . . . Reused . | . . . Traps Extracted . | . . . Installed . | . . . Triggered . | . . . Most Traps Carried 1 | . . 1 Machines | -11 -10 -10 ---------- Run | Yrd Mat Sub Machines Disabled . | . . . Max in Single Turn . | . . . Machines Repaired . | . . . Machines Dismantled . | . . . Machines Sabotaged . | . . . Overloaded Fab Kills . | . . . Hacking | -11 -10 -10 --------- Run | Yrd Mat Sub Machines Accessed 8 | . 8 . Terminals 8 | . 8 . Fabricators . | . . . Repair Stations . | . . . Recycling Units . | . . . Scanalyzers . | . . . Garrison Access . | . . . Total Hacks 18 | . 18 . Successful 9 | . 9 . Failed 9 | . 9 . Catastrophic . | . . . Database Lockouts . | . . . Manual 17 | . 17 . Terminals 18 | . 18 . Fabricators . | . . . Repair Stations . | . . . Recycling Units . | . . . Scanalyzers . | . . . Garrison Access . | . . . Terminal Hacks . | . . . Fabricator Hacks . | . . . Repair Station Hacks . | . . . Recycling Unit Hacks . | . . . Scanalyzer . | . . . Garrison Access Hacks . | . . . Unauthorized Hacks 9 | . 9 . Terminals 9 | . 9 . Botnet 4 | . 4 . Skim 5 | . 5 . Fabricators . | . . . Repair Stations . | . . . Recycling Units . | . . . Scanalyzers . | . . . Garrison Access . | . . . Data Cores Recovered . | . . . Used . | . . . Hacking Detections 5 | . 5 . Full Trace Events 2 | . 2 . Feedback Events . | . . . Feedback Blocked . | . . . Robot Schematics Acquired . | . . . Robots Built . | . . . Authchips . | . . . Time . | . . . Total Robot Build Rating . | . . . Part Schematics Acquired . | . . . Parts Built . | . . . Authchips . | . . . Time . | . . . Total Part Build Rating . | . . . Part Studies Acquired . | . . . Parts Repaired . | . . . Time . | . . . Parts Recycled . | . . . Recycled Matter . | . . . Retrieved Matter . | . . . Retrieved Components . | . . . Parts Scanalyzed . | . . . Part Schematics Acquired . | . . . Parts Damaged . | . . . Bothacking | -11 -10 -10 ------------ Run | Yrd Mat Sub Used RIF Installer . | . . . Robots Hacked . | . . . Non-combat . | . . . Combat . | . . . Robot Hacks Applied . | . . . Relay Couplers Released . | . . . Fabnet Peak Effective % . | . . . Robots Rewired . | . . . Allies Hacked . | . . . Hacks Repelled . | . . . Allies | -11 -10 -10 -------- Run | Yrd Mat Sub Total Allies . | . . . Largest Group . | . . . Highest-Rated Group . | . . . Highest-Rated Ally . | . . . Total Orders . | . . . Ally Attacks . | . . . Total Damage . | . . . Kills . | . . . Allies Corrupted . | . . . Allies Melted . | . . . Intel | -11 -10 -10 ------- Run | Yrd Mat Sub Active Infowar (turns) 361 | 25 336 . Seismic 361 | 25 336 . Robot Analysis Total . | . . . Derelict Logs Recovered 1 | . . 1 Drone Launches . | . . . Drone Recoveries . | . . . Exploration | -11 -10 -10 ------------- Run | Yrd Mat Sub Turns Passed 4275 | 188 1782 2305 Spaces Moved 1839 | 75 828 936 Core 19 | 19 . . Treads 539 | 56 483 . Legs . | . . . Wheels 1281 | . 345 936 Hover . | . . . Flight . | . . . Fastest Speed 50 | 50 120 210 Average Speed 193 | 136 179 210 Slowest Speed 210 | 160 210 210 Overloaded Moves . | . . . Propulsion Burnouts . | . . . Robots Hopped . | . . . Potential Cave-ins . | . . . Cave-ins Triggered . | . . . Exploration Rate (%) 52 | 4 97 55 Regions Visited 2 Branch Regions 1 Pre-discovered Areas 2 | . . 2 Known Exits Taken . | . . . Unknown Exits Taken 2 | 1 1 . Scrap Searched 5 | . . 5 Spaces Dug . | . . . Terrain Destroyed . | . . . Melee . | . . . Projectile . | . . . AOE . | . . . Terrain Rammed . | . . . Walls Destroyed . | . . . Machines Disabled . | . . . Actions | -11 -10 -10 --------- Run | Yrd Mat Sub Total 2270 | 117 991 1162 Wait 188 | . 43 145 Move 1837 | 74 827 936 Hop . | . . . Pick Up 48 | 12 23 13 Fast Attach 3 | 1 2 . Attach 17 | 6 4 7 Detach . | . . . Swap 7 | . 4 3 Drop 12 | . 12 . Fire 157 | 24 75 58 Melee . | . . . Ram . | . . . Kick . | . . . Crush 1 | . 1 . Escape Stasis . | . . . Rewire . | . . . Trap . | . . . Miscellaneous . | . . . Route ------- -11/Scrapyard -10/Materials (discovered 5 exits: [*Mat x2] / [*Min x2] / [*Sub]) -10/Subcaves (discovered 1 exit: [*Mat]) History --------- Turn | Location | Event 36 | -11/Scrapyard | Discovered new exit (range 15) 189 | -11/Scrapyard | Entered Materials 231 | -10/Materials | Discovered new exit (range 15) 304 | -10/Materials | Build established: Mutant 445 | -10/Materials | Discovered new exit (range 8) 450 | -10/Materials | Discovered new exit (range 7) 645 | -10/Materials | Discovered new exit (range 14) 1116 | -10/Materials | Discovered new exit (range 12) 1971 | -10/Materials | Entered Subcaves 1972 | -10/Subcaves | Approached by a straggling Scientist 1982 | -10/Subcaves | Learned location of Zion (-6) 2060 | -10/Subcaves | Met a Zionite searching for "candidates" 2074 | -10/Subcaves | Discovered new exit (range 16) 2135 | -10/Subcaves | Ambushed by Subdwellers from Twisted Machinery 2435 | -10/Subcaves | Core integrity fell below 50% 2480 | -10/Subcaves | Lost 5 parts (1p1n1u2w) 2530 | -10/Subcaves | Ambushed by Subdwellers from Twisted Machinery 3255 | -10/Subcaves | Shifting Twisted Machinery released Battle Cannon 3491 | -10/Subcaves | Shifting Twisted Machinery released Sub. Laser 3829 | -10/Subcaves | Disturbed a concealed Subdweller 4156 | -10/Subcaves | Shifting Twisted Machinery released Mak. Shrapnel Gun 4269 | -10/Subcaves | Core integrity fell below 20% 4276 | -10/Subcaves | Destroyed by M2-KYX(R) with Subdweller Beam Cannon Last Messages --------------- 03807_ Found Barrage Gun. 03807_ Found 43 Matter. 03813_ Searching scrap... 03813_ Found Shrapnel Trap. 03813_ Found Riot Gun. 03813_ Found 56 Matter. 03817_ Acquired Shrapnel Trap. 03825_ Searching scrap... 03825_ Found Sub. Optics. 03825_ Found Sub. Laser. 03825_ Found 70 Matter. 03829_ WH-0R0(R) angrily emerges from the Twisted Machinery. 03830_ WH-0R0(R): "SUBSUUUUUB!" 03840_ WH-0R0(R) destroyed. 03845_ Acquired Sub. Optics. 03853_ Acquired Sub. Monowheel. 03860_ Acquired Riot Gun. 03911_ Subatomizers dissect the Barrage Gun. 04102_ UH-1OX(R) destroyed. Mak. Shrapnel Gun falls loose from the Twisted Machinery. Map ----- +----------------------------------------------------+ | ??????????????????????????????????????????? | | ??????????????????????????????????????????? | | ??????????????????????????????????????????? | | ??????????????????????????????????????????? | | ??????????????????????????????????????????? | | ??????????????????????????????????????????? | | ??????????????????????????????????????????? | | ??????????????????????????????????????????? | | ??????????????????????????????????????????? | | ??????????????????????????????????????????? | | ??????????????????????????????????????????? | | ??????????????????????????????????????????? | | ??????????????????????????????????????????? | | ??????????????????????????????????????????? | | ??????????????????????#???????????????????? | | ????????????????????? ##??????? ??????????? | | ????????????????????? #????? ???????????? | | ????????????????????? #?### ????????????? | | ????????????????????? ## ??????????????? | | ???????????????????? ???????????????? | | ???????????????????? ?????????????????? | | ???????????????????? #??????????????????? | | ??????????????????## #??????????????????? | | ??????????????????# #???????????????????? | | ????????????????###R #???????????????????? | | ???????????????## @## #??????????????????? | | ???????????????# #? #?????????????????? | | ???????????????# ##?? ????????????????? | | ???????????????# #???? ???????????????? | | ??????????????## ##???? ?????????????? | | ??????????????# ##??? ###????????????? | | ??????????????# #???? ##??????????????? | | ??????????????# #?????#???????????????? | | ??????????????## ##???????????????????"?? | | ???????????????# ##??##???????????? ?" "? | | ???????????????# ### ###??????? "" ? | | ???????????????# ##???? " ? | | ???????????????# ##? " ? | | ???????????????## ## #? | | ???????????????### ## ## | | ???????????????# #?? # | | ???????????????## ##? # | | ????????????????# ##? # | | ???????????#???## #?? # | | ????????????"??# ##?? # | | ???????????## ## ##???# # | | ???????????# #" #### #???# | | ???????????# #### #??## | | ???????????# ## ##?## | | ?????????### # " ##?## ## | +----------------------------------------------------+ Best States ------------- Heat Dissipation 25 Energy Generation 15 Energy Capacity 250 Matter Stores 300 Matter Capacity 300 Sight Range 16 Terrain Scan Density 10 Armor Coverage 225 Evasion (%) 50 Recoil Reduction 2 Item Schematics ----------------- None Robot Schematics ------------------ None Fabricated ------------ Nothing Repaired ---------- Nothing Studied --------- None Alien Tech Used ----------------- None Achievements -------------- None Challenges ------------ None Game ------ Seed CoolantUtilityFalx Manual? 0 Play Time 00:19:11 Cumulative 237.8 hours Start 2026.02.17 @ 19:05:17 End 2026.02.17 @ 19:22:46 Sessions 1 Manual Loads 0 Difficulty Rogue Special Mode None Game No. 329 Rogue 329 Adventurer 0 Explorer 0 Win Type - Total 4 Types 2/0/0/1/0/0/0/0/0/1 Lore% 76 Gallery% 73 Achievement% 54 Wizard Run 0 Options --------- Layout 0 ASCII 0 Keyboard 0 Movement Mouse Keybinds 0 Fullscreen 1 Font 16/SmallcapsGlow Map View 75x55 Zoom Use 0% Tactical HUD 1 Map Filters NONE Filters NONE Steam 1 RUN: 5023a678-89df-4505-89c8-8047b4b74338